bitfinex/quotes_BTCUSD_20240602
["timestamp","ask_amount","ask_price","bid_price","bid_amount"]
[1717314136360,0.7176476,67761.0,67760.0,0.34060467]
[1717314137993,0.71758075,67761.0,67760.0,0.34060467]
[1717314144809,0.71639018,67761.0,67760.0,0.34060467]
[1717314152450,0.71653712,67761.0,67760.0,0.34060467]
[1717314154007,0.71657603,67761.0,67760.0,0.34060467]
[1717314154578,0.7167785,67761.0,67760.0,0.34060467]
[1717314158129,0.7167785,67761.0,67760.0,0.18500467]
[1717314159623,0.71661185,67761.0,67760.0,0.18500467]
[1717314167370,0.76078798,67761.0,67760.0,0.18500467]
[1717314169300,0.76079479,67761.0,67760.0,0.18500467]
[1717314174888,0.76067142,67761.0,67760.0,0.18500467]
[1717314175407,0.76067142,67761.0,67760.0,0.10470467]
[1717314175605,1.03777142,67761.0,67760.0,0.103]
[1717314175772,1.28874348,67761.0,67760.0,0.103]
[1717314176168,1.35501789,67761.0,67760.0,0.103]
[1717314176389,1.28874348,67761.0,67760.0,0.103]
[1717314177639,1.2886636,67761.0,67760.0,0.103]
[1717314178246,1.26145434,67761.0,67760.0,0.103]
[1717314178452,1.2886636,67761.0,67760.0,0.103]
[1717314181160,1.1372636,67761.0,67760.0,0.10470467]
[1717314181359,1.0613636,67761.0,67760.0,0.10470467]
[1717314183227,1.0115636,67761.0,67760.0,0.10470467]
[1717314183401,1.0613636,67761.0,67760.0,0.103]
[1717314183832,1.0613636,67761.0,67760.0,0.10470467]
[1717314184404,1.0115636,67761.0,67760.0,0.10470467]
[1717314185402,1.00777546,67761.0,67760.0,0.10470467]
[1717314186664,0.71262046,67761.0,67760.0,0.10470467]
[1717314186839,0.71262046,67761.0,67760.0,0.18520467]
[1717314187330,0.75679719,67761.0,67760.0,0.18520467]
[1717314193260,0.75679719,67761.0,67760.0,0.18390467]
[1717314193479,0.75679719,67761.0,67760.0,0.34730467]
[1717314195373,0.71262046,67761.0,67760.0,0.34730467]
[1717314196102,0.71361756,67761.0,67760.0,0.34730467]
[1717314197337,0.41846256,67761.0,67760.0,0.34730467]
[1717314197951,0.41846256,67761.0,67760.0,0.53730467]
[1717314200298,0.34766155,67761.0,67760.0,0.53730467]
[1717314211385,0.34733824,67761.0,67760.0,0.53730467]
[1717314220545,0.34733824,67761.0,67760.0,0.68308258]
[1717314220546,0.24733824,67761.0,67760.0,0.68308258]
[1717314220954,0.24733824,67761.0,67760.0,0.83623191]
[1717314220955,0.22018769,67761.0,67760.0,0.83623191]
[1717314221354,0.18318769,67761.0,67760.0,0.67708258]
[1717314221554,0.18318769,67761.0,67760.0,0.83022904]
[1717314221555,0.14718769,67761.0,67760.0,0.83022904]
[1717314221727,0.14718769,67761.0,67760.0,0.83222904]
[1717314222127,0.14718769,67761.0,67760.0,0.67908258]
[1717314222748,0.14718769,67761.0,67760.0,0.83222873]
[1717314223148,0.1,67768.0,67764.0,0.23740467]
[1717314223149,0.14757,67765.0,67764.0,0.23740467]
[1717314223467,0.37481744,67765.0,67764.0,0.28720467]
[1717314224319,0.41181744,67765.0,67764.0,0.29020467]
[1717314224469,0.44281744,67765.0,67764.0,0.29320467]
[1717314229177,0.41557,67765.0,67764.0,0.29320467]
[1717314237811,0.31557,67765.0,67764.0,0.29320467]
[1717314241211,0.31557,67765.0,67764.0,0.43898258]
[1717314244457,0.068,67765.0,67764.0,0.59418258]
[1717314244891,0.068,67765.0,67764.0,0.74731729]
[1717314245680,0.068,67765.0,67764.0,0.74431729]
[1717314245681,0.037,67765.0,67764.0,0.74431729]
[1717314245908,0.046,67765.0,67764.0,0.74531729]
[1717314246554,0.046,67765.0,67764.0,0.74431729]
[1717314246555,0.037,67765.0,67764.0,0.74431729]
[1717314246756,0.1,67772.0,67771.0,0.19]
[1717314246891,0.1,67772.0,67771.0,0.32130467]
[1717314248384,0.137,67772.0,67771.0,0.32430467]
[1717314249027,0.168,67772.0,67771.0,0.32730467]
[1717314253335,0.168,67772.0,67771.0,0.27750467]
[1717314253541,0.168,67772.0,67771.0,0.24750467]
[1717314254795,0.315553,67772.0,67771.0,0.24750467]
[1717314265209,0.315553,67772.0,67771.0,0.19770467]
[1717314265434,0.315553,67772.0,67771.0,0.24750467]
[1717314267603,0.315553,67772.0,67771.0,0.33070467]
[1717314269889,0.315553,67772.0,67771.0,0.24750467]
[1717314273241,0.315553,67772.0,67771.0,0.40063011]
[1717314273670,0.315553,67772.0,67771.0,0.24750467]
[1717314274219,0.315553,67772.0,67771.0,0.40063013]
[1717314274837,0.315553,67772.0,67771.0,0.40063012]
[1717314275204,0.34253323,67772.0,67771.0,0.40063012]
[1717314275629,0.34253323,67772.0,67771.0,0.40063011]
[1717314284598,0.34253323,67772.0,67771.0,0.40062998]
[1717314288120,0.34271142,67772.0,67771.0,0.40062998]
[1717314298294,0.34271142,67772.0,67771.0,0.40062995]
[1717314299010,0.34283448,67772.0,67771.0,0.40062889]
[1717314300597,0.34283339,67772.0,67771.0,0.40062858]
[1717314301222,0.315553,67772.0,67771.0,0.40062858]
[1717314301654,0.34282301,67772.0,67771.0,0.40062858]
[1717314301875,0.315553,67772.0,67771.0,0.35082858]
[1717314307949,0.315553,67772.0,67771.0,0.3508281]
[1717314310164,0.315553,67772.0,67771.0,0.4006281]
[1717314310368,0.315553,67772.0,67771.0,0.24750467]
[1717314310574,0.315553,67772.0,67771.0,0.40062809]
[1717314310974,0.315553,67772.0,67771.0,0.24750467]
[1717314311331,0.315553,67772.0,67771.0,0.62528258]
[1717314311738,0.315553,67772.0,67771.0,0.006]
[1717314311739,0.84346,67772.0,67771.0,0.006]
[1717314311952,1.02873639,67772.0,67771.0,0.006]
[1717314312300,0.9845358,67772.0,67771.0,0.00770467]
[1717314312511,0.9845358,67772.0,67771.0,0.006]
[1717314312678,0.9845358,67772.0,67771.0,0.00770467]
[1717314312881,0.9845358,67772.0,67771.0,0.006]
[1717314313875,0.9203675,67772.0,67771.0,0.18613946]
[1717314314871,0.9203675,67772.0,67771.0,0.18784413]
[1717314315657,0.8705675,67772.0,67771.0,0.18784413]
[1717314319602,0.8705675,67772.0,67771.0,0.18613946]
[1717314323192,0.8705675,67772.0,67771.0,0.18784413]
[1717314324604,0.87071923,67772.0,67771.0,0.18784413]
[1717314326649,0.87071923,67772.0,67771.0,0.18613946]
[1717314330625,0.87768827,67772.0,67771.0,0.18613946]
[1717314334377,0.87768827,67772.0,67771.0,0.18784413]
[1717314334765,0.87768827,67772.0,67771.0,0.18613946]
[1717314334966,0.87768827,67772.0,67771.0,0.18784413]
[1717314336713,0.8777138,67772.0,67771.0,0.18784413]
[1717314341221,0.94362613,67772.0,67771.0,0.18784413]
[1717314342225,0.94363562,67772.0,67771.0,0.18784413]
[1717314344628,0.93666658,67772.0,67771.0,0.18784413]
[1717314344801,0.94377292,67772.0,67771.0,0.18784413]
[1717314348584,0.94377292,67772.0,67771.0,0.18613946]
[1717314349630,0.8778511,67772.0,67771.0,0.18613946]
[1717314349820,0.94432448,67772.0,67771.0,0.18613946]
[1717314352262,0.94432448,67772.0,67771.0,0.18784413]
[1717314352462,0.94432448,67772.0,67771.0,0.18613946]
[1717314352671,0.94432448,67772.0,67771.0,0.18784413]
[1717314353830,0.94432448,67772.0,67771.0,0.18613946]
[1717314354261,0.94432448,67772.0,67771.0,0.18784413]
[1717314354673,0.94432448,67772.0,67771.0,0.18613946]
[1717314356709,1.23943148,67772.0,67771.0,0.18613946]
[1717314356974,1.38923148,67772.0,67771.0,0.18613946]
[1717314357097,1.49957245,67772.0,67771.0,0.18613946]
[1717314357303,1.38923148,67772.0,67771.0,0.18613946]
[1717314357737,1.53500939,67772.0,67771.0,0.18613946]
[1717314358428,1.62332803,67772.0,67771.0,0.18613946]
[1717314361876,1.53500939,67772.0,67771.0,0.18613946]
[1717314362087,1.53553374,67772.0,67771.0,0.18613946]
[1717314362582,1.53948555,67772.0,67771.0,0.18613946]
[1717314363302,1.60569346,67772.0,67771.0,0.18613946]
[1717314364862,1.60557035,67772.0,67771.0,0.18613946]
[1717314366313,1.53936244,67772.0,67771.0,0.18613946]
[1717314366962,1.60557035,67772.0,67771.0,0.18613946]
[1717314368595,1.48956244,67772.0,67771.0,0.18613946]
[1717314368803,1.53936244,67772.0,67771.0,0.18613946]
[1717314369021,1.60557035,67772.0,67771.0,0.18613946]
[1717314369631,1.55577035,67772.0,67771.0,0.18613946]
[1717314370001,1.60557035,67772.0,67771.0,0.18613946]
[1717314370258,1.53936244,67772.0,67771.0,0.18613946]
[1717314370777,1.58560849,67772.0,67771.0,0.18613946]
[1717314371183,1.54148624,67772.0,67771.0,0.18613946]
[1717314372547,1.33458624,67772.0,67771.0,0.18613946]
[1717314372699,1.25888624,67772.0,67771.0,0.18613946]
[1717314373102,1.32530572,67772.0,67771.0,0.18613946]
[1717314373549,1.30321606,67772.0,67771.0,0.18613946]
[1717314373784,1.25909781,67772.0,67771.0,0.18613946]
[1717314373990,1.23107713,67772.0,67771.0,0.18613946]
[1717314374157,1.25917015,67772.0,67771.0,0.18613946]
[1717314374573,1.30328702,67772.0,67771.0,0.18613946]
[1717314374777,1.11339224,67772.0,67771.0,0.18784413]
[1717314374981,0.86240171,67772.0,67771.0,0.42804413]
[1717314375397,0.8111789,67772.0,67771.0,0.42804413]
[1717314376210,0.5160719,67772.0,67771.0,0.42804413]
[1717314378840,0.5160719,67772.0,67771.0,0.42633946]
[1717314379487,0.5160719,67772.0,67771.0,0.42804413]
[1717314380120,0.5160719,67772.0,67771.0,0.42633946]
[1717314381373,0.8609789,67772.0,67771.0,0.18613946]
[1717314382727,1.1015789,67772.0,67771.0,0.18613946]
[1717314385445,0.8609789,67772.0,67771.0,0.18613946]
[1717314385647,1.1015789,67772.0,67771.0,0.18613946]
[1717314386488,1.0517789,67772.0,67771.0,0.18613946]
[1717314386712,0.8879789,67772.0,67771.0,0.18613946]
[1717314388338,0.93209537,67772.0,67771.0,0.18613946]
[1717314390811,0.8879789,67772.0,67771.0,0.18613946]
[1717314391217,0.93209537,67772.0,67771.0,0.18613946]
[1717314391575,0.85529537,67772.0,67771.0,0.42614413]
[1717314391999,0.8111789,67772.0,67771.0,0.42614413]
[1717314393113,0.81975962,67772.0,67771.0,0.42614413]
[1717314394196,0.81975962,67772.0,67771.0,0.42443946]
[1717314394863,0.81975962,67772.0,67771.0,0.42614413]
[1717314395277,0.81975962,67772.0,67771.0,0.42443946]
[1717314395822,0.81975962,67772.0,67771.0,0.42614413]
[1717314397016,0.81975962,67772.0,67771.0,0.42443946]
[1717314397219,0.86387609,67772.0,67771.0,0.42443946]
[1717314397838,0.81975962,67772.0,67771.0,0.42443946]
[1717314399230,0.86390549,67772.0,67771.0,0.42443946]
[1717314399625,0.7916666,67772.0,67771.0,0.18613946]
[1717314399855,1.05349063,67772.0,67771.0,0.18613946]
[1717314400740,0.89619063,67772.0,67771.0,0.18613946]
[1717314401492,0.82039063,67772.0,67771.0,0.18613946]
[1717314402315,0.88661681,67772.0,67771.0,0.18613946]
[1717314407279,0.85585146,67772.0,67771.0,0.18613946]
[1717314407481,0.88458091,67772.0,67771.0,0.18613946]
[1717314409047,0.88458091,67772.0,67771.0,0.18784413]
[1717314409312,0.88458091,67772.0,67771.0,0.42194413]
[1717314410242,0.81835473,67772.0,67771.0,0.42194413]
[1717314410468,0.88458091,67772.0,67771.0,0.42194413]
[1717314411164,0.81835473,67772.0,67771.0,0.42194413]
[1717314411620,0.8625226,67772.0,67771.0,0.42194413]
[1717314412267,0.86264569,67772.0,67771.0,0.42194413]
[1717314414397,0.81847782,67772.0,67771.0,0.42194413]
[1717314419451,0.884704,67772.0,67771.0,0.42194413]
[1717314420583,0.81847782,67772.0,67771.0,0.42194413]
[1717314421019,0.884704,67772.0,67771.0,0.42194413]
[1717314421743,0.8885473,67772.0,67771.0,0.42194413]
[1717314421883,0.82227368,67772.0,67771.0,0.42194413]
[1717314422293,0.8885473,67772.0,67771.0,0.42194413]
[1717314423277,0.5713495,67772.0,67771.0,0.42194413]
[1717314423480,0.42716668,67772.0,67771.0,0.42194413]
[1717314424118,0.42716668,67772.0,67771.0,0.47174413]
[1717314426012,0.42716668,67772.0,67771.0,0.42194413]
[1717314427199,0.34466102,67772.0,67771.0,0.42194413]
[1717314436775,0.34466102,67772.0,67771.0,0.47174413]
[1717314436978,0.34466102,67772.0,67771.0,0.42194413]
[1717314437195,0.315553,67772.0,67771.0,0.47174413]
[1717314438897,0.284553,67772.0,67771.0,0.46874413]
[1717314439317,0.285553,67772.0,67771.0,0.47774413]
[1717314440449,0.248553,67772.0,67771.0,0.47474413]
[1717314440648,0.249553,67772.0,67771.0,0.47974413]
[1717314441744,0.25609952,67772.0,67771.0,0.47974413]
[1717314448326,0.28527303,67772.0,67771.0,0.47974413]
[1717314448688,0.25609952,67772.0,67771.0,0.47974413]
[1717314448895,0.28532552,67772.0,67771.0,0.47974413]
[1717314449112,0.25609952,67772.0,67771.0,0.47974413]
[1717314449300,0.28532475,67772.0,67771.0,0.47974413]
[1717314449803,0.25609952,67772.0,67771.0,0.47974413]
[1717314450215,0.28549887,67772.0,67771.0,0.47974413]
[1717314450801,0.25609952,67772.0,67771.0,0.47974413]
[1717314451810,0.25609952,67772.0,67771.0,0.42994413]
[1717314451988,0.25609952,67772.0,67771.0,0.47974413]
[1717314453410,0.28543585,67772.0,67771.0,0.47974413]
[1717314454153,0.28543585,67772.0,67771.0,0.42994413]
[1717314454418,0.28543585,67772.0,67771.0,0.47974413]
[1717314454954,0.25609952,67772.0,67771.0,0.47974413]
[1717314455971,0.249553,67772.0,67771.0,0.47974413]
[1717314457245,0.249553,67772.0,67771.0,0.63285564]
[1717314457446,0.249553,67772.0,67771.0,0.77863355]
[1717314457646,0.149553,67772.0,67771.0,0.77863355]
[1717314458659,0.002,67772.0,67771.0,0.77863355]
[1717314460029,0.002,67772.0,67771.0,0.62552204]
[1717314460229,0.002,67772.0,67771.0,0.77862832]
[1717314470867,0.002,67772.0,67771.0,0.49472832]
[1717314471067,0.002,67772.0,67771.0,0.54452832]
[1717314474322,0.002,67772.0,67771.0,0.62482832]
[1717314474519,0.002,67772.0,67771.0,0.57502832]
[1717314474773,0.002,67772.0,67771.0,0.62482832]
[1717314478267,0.002,67772.0,67771.0,0.57502832]
[1717314478492,0.002,67772.0,67771.0,0.62482832]
[1717314483001,0.002,67772.0,67771.0,0.77622832]
[1717314483391,0.002,67772.0,67771.0,0.72642832]
[1717314483590,0.002,67772.0,67771.0,0.77622832]
[1717314483895,0.002,67772.0,67771.0,0.57502832]
[1717314484271,0.002,67772.0,67771.0,0.62482832]
[1717314486560,0.002,67772.0,67771.0,0.62482857]
[1717314494284,0.002,67772.0,67771.0,0.66906838]
[1717314494660,0.001,67772.0,67771.0,0.61582857]
[1717314495070,0.002,67772.0,67771.0,0.62182857]
[1717314496106,0.004,67772.0,67771.0,0.62682857]
[1717314496304,0.004,67772.0,67771.0,0.69318829]
[1717314496877,0.002,67772.0,67771.0,0.68218829]
[1717314497280,0.004,67772.0,67771.0,0.69918829]
[1717314499390,0.004,67772.0,67771.0,1.02624089]
[1717314500211,0.004,67772.0,67771.0,0.63282857]
[1717314500414,0.004,67772.0,67771.0,1.02627299]
[1717314501310,0.004,67772.0,67771.0,0.95987265]
[1717314502137,0.004,67772.0,67771.0,1.02628412]
[1717314503241,0.004,67772.0,67771.0,1.026289]
[1717314505069,0.004,67772.0,67771.0,0.945989]
[1717314505489,0.004,67772.0,67771.0,0.896189]
[1717314505699,0.004,67772.0,67771.0,0.945989]
[1717314506571,0.004,67772.0,67771.0,1.024889]
[1717314507637,0.004,67772.0,67771.0,1.05173921]
[1717314513021,0.004,67772.0,67771.0,1.00193921]
[1717314513219,0.004,67772.0,67771.0,1.05173921]
[1717314513394,0.004,67772.0,67771.0,1.00193921]
[1717314513609,0.004,67772.0,67771.0,0.97283921]
[1717314514814,0.004,67772.0,67771.0,0.92303921]
[1717314515238,0.004,67772.0,67771.0,0.97283921]
[1717314515441,0.004,67772.0,67771.0,0.92303921]
[1717314515653,0.004,67772.0,67771.0,0.97283921]
[1717314518888,0.004,67772.0,67771.0,0.57937025]
[1717314519100,0.004,67772.0,67771.0,0.97283439]
[1717314520866,0.004,67772.0,67771.0,0.42627225]
[1717314521097,0.004,67772.0,67771.0,0.97283615]
[1717314525008,0.004,67772.0,67771.0,0.92303615]
[1717314525207,0.004,67772.0,67771.0,0.97283615]
[1717314532165,0.004,67772.0,67771.0,0.97283661]
[1717314532499,0.004,67772.0,67771.0,0.92303661]
[1717314532708,0.004,67772.0,67771.0,0.97283661]
[1717314533116,0.151553,67772.0,67771.0,0.8961864]
[1717314533317,0.151553,67772.0,67771.0,0.61893342]
[1717314533635,0.151553,67772.0,67771.0,0.55252067]
[1717314533825,0.151553,67772.0,67771.0,0.5525255]
[1717314534689,0.151553,67772.0,67771.0,0.5027255]
[1717314534891,0.151553,67772.0,67771.0,0.5525255]
[1717314535339,0.151553,67772.0,67771.0,0.6654255]
[1717314536388,0.151553,67772.0,67771.0,0.6156255]
[1717314536588,0.151553,67772.0,67771.0,0.6654255]
[1717314538359,0.151553,67772.0,67771.0,0.73185211]
[1717314538788,0.151553,67772.0,67771.0,0.68205211]
[1717314538991,0.151553,67772.0,67771.0,0.73185211]
[1717314540576,0.004,67772.0,67771.0,0.73185211]
[1717314540983,0.004,67772.0,67771.0,0.73186193]
[1717314541128,0.004,67772.0,67771.0,1.05892566]
[1717314541343,0.004,67772.0,67771.0,0.73186193]
[1717314550100,0.151553,67772.0,67771.0,0.73186193]
[1717314552909,0.151553,67772.0,67771.0,0.68206193]
[1717314553115,0.151553,67772.0,67771.0,0.73186193]
[1717314553401,0.151553,67772.0,67771.0,0.66542559]
[1717314557321,0.151553,67772.0,67771.0,0.51232204]
[1717314557474,0.151553,67772.0,67771.0,0.6623962]
[1717314558059,0.151553,67772.0,67771.0,0.66133183]
[1717314562434,0.151553,67772.0,67771.0,0.72776376]
[1717314562592,0.151553,67772.0,67771.0,0.66133183]
[1717314563413,0.151553,67772.0,67771.0,0.72776376]
[1717314570947,0.151553,67772.0,67771.0,0.7263635]
[1717314571674,0.004,67772.0,67771.0,1.29322726]
[1717314572314,0.004,67772.0,67771.0,1.31537278]
[1717314572712,0.002,67772.0,67771.0,1.2097907]
[1717314572915,0.147547,67775.0,67771.0,1.2047907]
[1717314573127,0.004,67772.0,67771.0,1.02921279]
[1717314573327,0.004,67772.0,67771.0,1.08449921]
[1717314573772,0.004,67772.0,67771.0,1.17308129]
[1717314573945,0.007,67772.0,67771.0,1.20108129]
[1717314574415,0.003,67772.0,67771.0,1.18108129]
[1717314574614,0.006,67772.0,67771.0,1.21408129]
[1717314574829,0.006,67772.0,67771.0,1.3598592]
[1717314576214,0.006,67772.0,67771.0,1.27127712]
[1717314576802,0.006,67772.0,67771.0,1.3598592]
[1717314579402,0.006,67772.0,67771.0,1.43526134]
[1717314580158,0.006,67772.0,67771.0,1.3598592]
[1717314580814,0.006,67772.0,67771.0,0.79112204]
[1717314581025,0.006,67772.0,67771.0,1.35982484]
[1717314584497,0.006,67772.0,67771.0,1.43518068]
[1717314585359,0.006,67772.0,67771.0,1.43520523]
[1717314589592,0.006,67772.0,67771.0,1.2821092]
[1717314589794,0.006,67772.0,67771.0,1.43520454]
[1717314589998,0.006,67772.0,67771.0,1.27126579]
[1717314592590,0.006,67772.0,67771.0,1.11066579]
[1717314592783,0.006,67772.0,67771.0,1.06086579]
[1717314592985,0.006,67772.0,67771.0,1.11066579]
[1717314594025,0.006,67772.0,67771.0,1.27296579]
[1717314594608,0.006,67772.0,67771.0,1.11066579]
[1717314594974,0.006,67772.0,67771.0,1.11066729]
[1717314600292,0.006,67772.0,67771.0,1.06086729]
[1717314600511,0.006,67772.0,67771.0,0.98166729]
[1717314600715,0.006,67772.0,67771.0,1.03146729]
[1717314601059,0.006,67772.0,67771.0,1.09780155]
[1717314601727,0.006,67772.0,67771.0,1.03139625]
[1717314602023,0.006,67772.0,67771.0,0.98159625]
[1717314602161,0.006,67772.0,67771.0,1.09780197]
[1717314602511,0.006,67772.0,67771.0,1.0978029]
[1717314603724,0.006,67772.0,67771.0,1.0480029]
[1717314604037,0.006,67772.0,67771.0,1.0978029]
[1717314606064,0.006,67772.0,67771.0,1.0480029]
[1717314606259,0.006,67772.0,67771.0,1.0978029]
[1717314608495,0.006,67772.0,67771.0,1.03139625]
[1717314609260,0.006,67772.0,67771.0,1.03147078]
[1717314615556,0.006,67772.0,67771.0,1.03147077]
[1717314615770,0.006,67772.0,67771.0,1.12001117]
[1717314615978,0.006,67772.0,67771.0,1.12003686]
[1717314619829,0.006,67772.0,67771.0,1.0314699]
[1717314620034,0.006,67772.0,67771.0,1.12004516]
[1717314621069,0.006,67772.0,67771.0,1.12004411]
[1717314622245,0.006,67772.0,67771.0,1.03146885]
[1717314623138,0.006,67772.0,67771.0,1.12004458]
[1717314623344,0.006,67772.0,67771.0,1.03146885]
[1717314624287,0.006,67772.0,67771.0,1.12004456]
[1717314624589,0.006,67772.0,67771.0,1.03146885]
[1717314625163,0.006,67772.0,67771.0,1.12004452]
[1717314625364,0.006,67772.0,67771.0,1.03146885]
[1717314626155,0.006,67772.0,67771.0,1.03146884]
[1717314627007,0.006,67772.0,67771.0,1.12004512]
[1717314627420,0.006,67772.0,67771.0,1.03146884]
[1717314629388,0.0023166,67772.0,67771.0,1.03146884]
[1717314631846,0.0023166,67772.0,67771.0,1.12004642]
[1717314632198,0.0023166,67772.0,67771.0,1.03146884]
[1717314634868,0.0023166,67772.0,67771.0,0.87837255]
[1717314635109,0.0023166,67772.0,67771.0,1.03146884]
[1717314647090,0.0023166,67772.0,67771.0,1.12005168]
[1717314647293,0.0023166,67772.0,67771.0,1.03146884]
[1717314648402,0.0023166,67772.0,67771.0,1.03146876]
[1717314650657,0.0023166,67772.0,67771.0,1.03146841]
[1717314658712,0.0023166,67772.0,67771.0,1.03146519]
[1717314662670,0.0023166,67772.0,67771.0,1.14219553]
[1717314662874,0.0023166,67772.0,67771.0,1.03146519]
[1717314665911,0.0023166,67772.0,67771.0,1.03146553]
[1717314668083,0.0023166,67772.0,67771.0,1.03146543]
[1717314670818,0.0023166,67772.0,67771.0,1.12005363]
[1717314672208,0.0023166,67772.0,67771.0,1.03146543]
[1717314678857,0.0023166,67772.0,67771.0,1.09239577]
[1717314679062,0.0023166,67772.0,67771.0,1.14219577]
[1717314679604,0.0023166,67772.0,67771.0,1.14219473]
[1717314680125,0.0023166,67772.0,67771.0,1.03146439]
[1717314680645,0.0023166,67772.0,67771.0,1.14219473]
[1717314685342,0.0023166,67772.0,67771.0,1.03146439]
[1717314690365,0.0023166,67772.0,67771.0,1.12004631]
[1717314691498,0.0023166,67772.0,67771.0,1.12004735]
[1717314691842,0.0023166,67772.0,67771.0,1.07024735]
[1717314692542,0.0023166,67772.0,67771.0,1.12004735]
[1717314694939,0.0023166,67772.0,67771.0,1.07024735]
[1717314695163,0.0023166,67772.0,67771.0,1.12004735]
[1717314698645,0.0023166,67772.0,67771.0,1.12004698]
[1717314701394,0.0023166,67772.0,67771.0,0.96695088]
[1717314701591,0.0023166,67772.0,67771.0,1.1200469]
[1717314706010,0.0023166,67772.0,67771.0,1.03146718]
[1717314709982,0.0023166,67772.0,67771.0,1.14219184]
[1717314710375,0.0023166,67772.0,67771.0,1.03146718]
[1717314711644,0.0023166,67772.0,67771.0,1.02976251]
[1717314711841,0.0023166,67772.0,67771.0,1.03146718]
[1717314720226,0.0023166,67772.0,67771.0,1.21016718]
[1717314720403,0.0023166,67772.0,67771.0,1.25996718]
[1717314721888,0.0023166,67772.0,67771.0,1.21016718]
[1717314722092,0.0023166,67772.0,67771.0,1.25996718]
[1717314723322,0.0023166,67772.0,67771.0,1.21016718]
[1717314723522,0.0023166,67772.0,67771.0,1.25996718]
[1717314723745,0.0023166,67772.0,67771.0,1.03146718]
[1717314724810,0.0023166,67772.0,67771.0,0.98166718]
[1717314725013,0.0023166,67772.0,67771.0,1.03146718]
[1717314725404,0.0023166,67772.0,67771.0,0.98166718]
[1717314725663,0.0023166,67772.0,67771.0,1.03146718]
[1717314726093,0.0023166,67772.0,67771.0,0.98166718]
[1717314726420,0.0023166,67772.0,67771.0,1.14219184]
[1717314727036,0.0023166,67772.0,67771.0,1.14217493]
[1717314727624,0.0023166,67772.0,67771.0,1.14217402]
[1717314728468,0.0023166,67772.0,67771.0,1.03145964]
[1717314728672,0.0023166,67772.0,67771.0,1.03146033]
[1717314731979,0.0023166,67772.0,67771.0,0.98166033]
[1717314732202,0.0023166,67772.0,67771.0,1.03146033]
[1717314736802,0.0023166,67772.0,67771.0,1.03146181]
[1717314738010,0.0023166,67772.0,67771.0,0.98166181]
[1717314738259,0.0023166,67772.0,67771.0,1.03146181]
[1717314743749,0.00910377,67772.0,67771.0,1.03146181]
[1717314743941,0.0023166,67772.0,67771.0,1.03146181]
[1717314744144,0.00910377,67772.0,67771.0,1.20382089]
[1717314744277,0.0023166,67772.0,67771.0,1.20382089]
[1717314746374,0.0023166,67772.0,67771.0,1.31453924]
[1717314747253,0.0023166,67772.0,67771.0,1.26473924]
[1717314747461,0.009105,67772.0,67771.0,1.31453924]
[1717314747666,0.0023166,67772.0,67771.0,1.31453924]
[1717314755765,0.0023166,67772.0,67771.0,1.26473924]
[1717314755954,0.00910513,67772.0,67771.0,1.31453924]
[1717314756158,0.0023166,67772.0,67771.0,1.31453924]
[1717314758811,0.0023166,67772.0,67771.0,1.26473924]
[1717314759129,0.00910597,67772.0,67771.0,1.31453924]
[1717314759278,0.0023166,67772.0,67771.0,1.31453924]
[1717314761968,0.0023166,67772.0,67771.0,1.1614447]
[1717314762145,0.0023166,67772.0,67771.0,1.31453906]
[1717314764703,0.0023166,67772.0,67771.0,1.1614447]
[1717314764904,0.0023166,67772.0,67771.0,1.31453916]
[1717314767928,0.0023166,67772.0,67771.0,1.26473916]
[1717314768285,0.00915688,67772.0,67771.0,1.31453916]
[1717314768502,0.0023166,67772.0,67771.0,1.31453916]
[1717314771316,0.0023166,67772.0,67771.0,1.1614447]
[1717314771651,0.0023166,67772.0,67771.0,1.31453916]
[1717314774764,0.0023166,67772.0,67771.0,1.31456465]
[1717314776628,0.0023166,67772.0,67771.0,1.26476465]
[1717314776896,0.0023166,67772.0,67771.0,1.31456465]
[1717314781515,0.0023166,67772.0,67771.0,1.31456462]
[1717314783488,0.0023166,67772.0,67771.0,1.31456461]
[1717314783891,0.0023166,67772.0,67771.0,1.26476456]
[1717314784093,0.0023166,67772.0,67771.0,1.31456456]
[1717314802431,0.0023166,67772.0,67771.0,1.26476456]
[1717314802756,0.0023166,67772.0,67771.0,1.31456456]
[1717314804200,0.0023166,67772.0,67771.0,1.31456504]
[1717314804798,0.0023166,67772.0,67771.0,1.31456469]
[1717314806782,0.0023166,67772.0,67771.0,1.26476469]
[1717314806932,0.0023166,67772.0,67771.0,1.31456469]
[1717314813585,0.2437166,67772.0,67771.0,1.31456469]
[1717314813923,0.25051022,67772.0,67771.0,1.31456469]
[1717314814531,0.25051022,67772.0,67771.0,1.26476469]
[1717314814705,0.25051022,67772.0,67771.0,1.31456469]
[1717314816348,0.15666322,67772.0,67771.0,1.11728211]
[1717314816545,0.39806322,67772.0,67771.0,1.09513451]
[1717314816745,0.39806322,67772.0,67771.0,1.00824423]
[1717314816951,0.43600802,67772.0,67771.0,0.57790321]
[1717314817370,0.39806343,67772.0,67771.0,0.57790321]
[1717314825369,0.39806343,67772.0,67771.0,0.52810321]
[1717314825896,0.39806343,67772.0,67771.0,0.52639854]
[1717314826118,0.39806343,67772.0,67771.0,0.52810321]
[1717314826995,0.39806343,67772.0,67771.0,0.52639854]
[1717314827135,0.39806343,67772.0,67771.0,0.52810321]
[1717314833076,0.39806343,67772.0,67771.0,0.35574413]
[1717314838020,0.39806343,67772.0,67771.0,0.74122204]
[1717314838021,0.00911043,67772.0,67771.0,0.74122204]
[1717314838475,0.0023166,67772.0,67771.0,0.74122204]
[1717314839130,0.0023166,67772.0,67771.0,0.89432266]
[1717314846729,0.0023166,67772.0,67771.0,0.89432224]
[1717314847388,0.0023166,67772.0,67771.0,0.89431945]
[1717314849195,0.0023166,67772.0,67771.0,0.89432037]
[1717314850632,0.0023166,67772.0,67771.0,0.89432038]
[1717314856872,0.0023166,67772.0,67771.0,0.93854198]
[1717314857072,0.0023166,67772.0,67771.0,0.89432038]
[1717314860565,0.0023166,67772.0,67771.0,0.93854198]
[1717314862175,0.0023166,67772.0,67771.0,0.93855439]
[1717314862830,0.0023166,67772.0,67771.0,0.69885439]
[1717314863068,0.0023166,67772.0,67771.0,0.94415439]
[1717314863692,0.0023166,67772.0,67771.0,0.94415368]
[1717314867282,0.0023166,67772.0,67771.0,0.97637278]
[1717314867521,0.0023166,67772.0,67771.0,1.04272593]
[1717314867924,0.0023166,67772.0,67771.0,1.09252593]
[1717314870069,0.0023166,67772.0,67771.0,1.0925242]
[1717314870412,0.0023166,67772.0,67771.0,1.02617105]
[1717314870648,0.0023166,67772.0,67771.0,1.09251988]
[1717314871989,0.0023166,67772.0,67771.0,1.02617105]